Cogmind - Beta 12 @@@ ROGUE MODE // 2023.10.09 @ 17:32:35 Player: Figgis Result: Destroyed by P-60 Hacker with Shock Rifle Performance ------------- Evolutions (3) 1500 Regions Visited (7) 1400 Robots Destroyed (39) 195 Value Destroyed (1257) 1257 Prototype IDs (2) 40 Alien Tech Used (0) 0 Bonus (533) 533 TOTAL SCORE: 4925 Bonus ------- Pacifist 270 High Alert Combat Kills 63 Entered Garrisons 200 Cogmind --------- Core Integrity 0/700 Matter 206/300 Energy 100/100 System Corruption 1% Temperature Cool (9) Movement Core (50) Location -7/Garrison Parts ------- > --- POWER (2) -------- (None) > --- PROPULSION (5) --- (None) > --- UTILITY (4) ------ (None) > --- WEAPON (2) ------- (None) > --- INVENTORY (5) ---- Melee Analysis Suite Improved Shield Generator Improved Shield Generator Improved Shield Generator Improved Shield Generator Peak State ------------ > --- POWER ------------ Improved Deuterium Engine Improved Deuterium Engine > --- PROPULSION ------- Improved Carbon-fiber Leg Improved Titanium Leg Improved Titanium Leg Improved Titanium Leg Improved Titanium Leg > --- UTILITY ---------- Improved Heat Sink Medium Storage Unit Light Armor Plating Improved Light Armor Plating > --- WEAPON ----------- Gauss Rifle Gauss Rifle > --- INVENTORY -------- Aluminum Leg Improved Carbon-fiber Leg Xenon Bombardment Thruster Medium Reactive Plating Heavy Laser Gauss Rifle Missile Launcher Heavy Mace Blade Saw [Rating: 47] Favorites ----------- Power Light Ion Engine Engine Light Ion Engine Power Core Nuclear Core Propulsion Improved Carbon-fiber Leg Leg Improved Carbon-fiber Leg Flight Unit VTOL Module Utility ECM Suite Device ECM Suite Storage Medium Storage Unit Protection Heavy Armor Plating Weapon Gauss Rifle Energy Gun Advanced Beam Rifle Energy Cannon Ion Cannon Ballistic Gun Gauss Rifle Ballistic Cannon Light Cannon Launcher Missile Launcher Special Weapon Mining Laser Impact Weapon Heavy Mace Slashing Weapon Blade Saw Build | -11 -10 -10 -10 -9 -8 -7 -7 ------- Run | Jun Mat Min Exi Min Mat Fac Gar Slots Evolved 6 | . . . . . 4 2 . Power 1 | . . . . . . 1 . Propulsion 3 | . . . . . 2 1 . Utility 2 | . . . . . 2 . . Weapon . | . . . . . . . . Parts Attached 75 | 7 7 . . 2 42 9 8 Power 9 | 2 1 . . . 4 1 1 Engine 6 | 2 1 . . . 2 1 . Core 3 | . . . . . 2 . 1 Reactor . | . . . . . . . . Propulsion 27 | 2 2 . . . 16 5 2 Treads . | . . . . . . . . Leg 20 | 2 . . . . 12 5 1 Wheel . | . . . . . . . . Hover . | . . . . . . . . Flight 7 | . 2 . . . 4 . 1 Utility 20 | 1 3 . . . 13 1 2 Device 9 | . 2 . . . 6 . 1 Storage 3 | 1 1 . . . 1 . . Processor . | . . . . . . . . Hackware . | . . . . . . . . Protection 8 | . . . . . 6 1 1 Artifact . | . . . . . . . . Weapon 19 | 2 1 . . 2 9 2 3 Energy Gun 5 | 1 . . . 1 3 . . Energy Cannon 2 | . . . . . 2 . . Ballistic Gun 5 | 1 . . . . 2 2 . Ballistic Cannon 2 | . 1 . . . 1 . . Launcher 2 | . . . . . 1 . 1 Special Weapon 1 | . . . . 1 . . . Impact Weapon 1 | . . . . . . . 1 Slashing Weapon 1 | . . . . . . . 1 Piercing Weapon . | . . . . . . . . Special Melee Weapon . | . . . . . . . . Unidentified Prototypes 2 | . . . . . 2 . . Parts Lost 21 | . . . . . 8 3 10 Power 3 | . . . . . 1 1 1 Propulsion 11 | . . . . . 4 1 6 Utility 5 | . . . . . 3 1 1 Weapon 2 | . . . . . . . 2 Highest Loss Streak 6 | . . . . . 3 3 6 To Critical Strikes 1 | . . . . . . . 1 Average Slot Usage (%) 84 | . 91 71 71 81 89 91 33 Engine 9 | . 14 14 14 14 5 13 2 Core 1 | . . . . . 3 . . Leg 19 | . 13 . . . 27 38 14 Flight 11 | . 14 28 28 28 7 . 2 Device 15 | . 20 28 28 28 14 4 . Storage 5 | . 7 . . . 5 7 2 Protection 4 | . . . . . 8 10 . Energy Gun 2 | . . . . . 4 . . Energy Cannon 1 | . . . . . 4 . . Ballistic Gun 6 | . 7 . . . 7 14 5 Ballistic Cannon 3 | . 13 . . . . . . Naked Turns 56 | . . . . . . . 56 Heaviest Build 62 | 14 32 6 6 8 46 62 30 Greatest Support 98 | 20 20 8 8 8 78 98 96 Greatest Overweight (x) 3 | 1 1 . . . 3 . 1 Average Overweight (x) . | . . . . . . . . Largest Inventory Capacity 15 | 8 15 5 5 5 10 10 10 Average Capacity 8 | 5 9 5 5 5 7 10 7 Most Carried 10 | 5 8 5 5 5 10 10 10 Average Carried 6 | 3 4 4 5 4 7 8 6 Final Capacity 10 | 8 5 5 5 5 10 10 5 Final Carried 10 | 2 5 5 5 5 9 10 5 Class Distribution -------------------- 79% | Mutant 20% | Sprinter Dominant Class ---------------- Mutant | -10/Materials Sprinter | -10/Mines Sprinter | -10/Exiles Sprinter | -9/Mines Mutant | -8/Materials Mutant | -7/Factory Mutant | -7/Garrison Resources | -11 -10 -10 -10 -9 -8 -7 -7 ----------- Run | Jun Mat Min Exi Min Mat Fac Gar Matter Collected 1391 | 174 . . . 186 943 41 47 Remotely . | . . . . . . . . Salvage Created 1569 | . . . . . 1438 . 131 Parts 92 | . . . . . 87 . 5 Haulers Intercepted 1 | . . . . . 1 . . Recyclers Shooed 2 | . . . . . 2 . . Parts Field Recycled . | . . . . . . . . Retrieved Matter . | . . . . . . . . Parts Self-Destructed . | . . . . . . . . Prevented . | . . . . . . . . Kills | -11 -10 -10 -10 -9 -8 -7 -7 ------- Run | Jun Mat Min Exi Min Mat Fac Gar Combat Hostiles Destroyed 30 | . . . . . 26 . 4 Guns 21 | . . . . . 20 . 1 Cannons 3 | . . . . . 3 . . AOE 6 | . . . . . 3 . 3 Classes Destroyed 10 | . . . . . 10 . . Builder 2 | . . . . . 2 . . Hauler 1 | . . . . . 1 . . Recycler 5 | . . . . . 5 . . Watcher 1 | . . . . . 1 . . Swarmer 6 | . . . . . 4 . 2 Cutter 3 | . . . . . 3 . . Grunt 14 | . . . . . 12 . 2 Sentry 4 | . . . . . 4 . . Hunter 2 | . . . . . 2 . . Heavy 1 | . . . . . 1 . . Best Kill Streak 7 | . . . . . 7 . 3 Combat Bots Only 6 | . . . . . 6 . 3 Max Kills in Single Turn 2 | . . . . . 2 . 2 Gunslinging 1 | . . . . . 1 . . Exploded 2 | . . . . . 2 . 2 Melee . | . . . . . . . . Uniques/NPCs Destroyed . | . . . . . . . . Combat | -11 -10 -10 -10 -9 -8 -7 -7 -------- Run | Jun Mat Min Exi Min Mat Fac Gar Damage Taken 4192 | . 32 26 . . 2361 349 1424 Core 1108 | . . 26 . . 372 12 698 Absorbed by Shields 76 | . . . . . . . 76 Redirected to Shielding 45 | . . . . . 45 . . Core Remaining (%) 73 | 100 . . . 89 32 . . Volleys Fired 120 | . . . . . 111 3 6 Largest 2 | . . . . . 2 2 2 Hottest 122 | . . . . . 122 56 64 Shots Fired 217 | . . . . . 199 6 12 Gun 169 | . . . . . 154 6 9 Cannon 39 | . . . . . 39 . . Launcher 9 | . . . . . 6 . 3 Special . | . . . . . . . . Kinetic 137 | . . . . . 122 6 9 Thermal 61 | . . . . . 61 . . Explosive 9 | . . . . . 6 . 3 Electromagnetic 10 | . . . . . 10 . . Robot Hit Streak 12 | . . . . . 12 5 1 Robot Miss Streak 6 | . . . . . 6 1 4 Penetration Max 1 | . . . . . 1 . . Secondary Targets 1 | . . . . . 1 . . Max Gunslinging Chain 1 | . . . . . 1 . . Shots Hit Robots 129 | . . . . . 119 5 5 Core Hits 71 | . . . . . 61 . 10 Critical Kills 1 | . . . . . 1 . . Critical Parts Destroyed . | . . . . . . . . Critical Strikes 3 | . . . . . 3 . . Burn 2 | . . . . . 2 . . Destroy 1 | . . . . . 1 . . Melee Attacks 4 | . . . . . . . 4 Impact . | . . . . . . . . Slashing 4 | . . . . . . . 4 Piercing . | . . . . . . . . Sneak Attacks . | . . . . . . . . Combat Hostiles . | . . . . . . . . Follow-up Attacks . | . . . . . . . . Damage Inflicted 3814 | . . . . . 3205 105 504 Guns 2233 | . . . . . 2074 105 54 Cannons 583 | . . . . . 583 . . Explosions 925 | . . . . . 545 . 380 Melee 38 | . . . . . . . 38 Ramming 35 | . . . . . 3 . 32 Kinetic 2049 | . . . . . 1890 105 54 Thermal 723 | . . . . . 723 . . Explosive 925 | . . . . . 545 . 380 Electromagnetic 44 | . . . . . 44 . . Impact . | . . . . . . . . Slashing 38 | . . . . . . . 38 Piercing . | . . . . . . . . Highest Corruption 1 | . . . . . . . 1 Average Corruption 1 | . . . . . . . 1 Corruption Purged . | . . . . . . . . Corruption Blocked . | . . . . . . . . Overload Shots . | . . . . . . . . Overflow Damage 17 | . . . . . 17 . . Projectiles 13 | . . . . . 13 . . Explosions 4 | . . . . . 4 . . Melee . | . . . . . . . . Knockbacks . | . . . . . . . . Impact . | . . . . . . . . Kinetic . | . . . . . . . . Secondary . | . . . . . . . . Self-Inflicted Damage 14 | . . . . . . . 14 Shots . | . . . . . . . . Rammed 9 | . . . . . . . 9 Targets Rammed 10 | . . . . . 1 . 9 Kicked 1 | . . . . . 1 . . Crushed . | . . . . . . . . Highest Temperature 320 | . . . . . 320 57 12 Average Temperature 95 | . . . . . 101 29 5 Received Heat Transfer 1297 | . 18 15 . . 828 54 382 Effects 3 | . . . . . 3 . . Interference 3 | . . . . . 3 . . Siege Activations . | . . . . . . . . Robots Corrupted . | . . . . . . . . Combat Hostiles . | . . . . . . . . Parts Fried . | . . . . . . . . Impact Corruptions . | . . . . . . . . Robots Melted . | . . . . . . . . Combat Hostiles . | . . . . . . . . Parts Melted 1 | . . . . . 1 . . Heat Transferred 1345 | . . . . . 1345 . . Parts Sabotaged . | . . . . . . . . Parts Stolen . | . . . . . . . . Parts Stripped . | . . . . . . . . Power Chain Reactions . | . . . . . . . . Missiles Intercepted . | . . . . . . . . Alert | -11 -10 -10 -10 -9 -8 -7 -7 ------- Run | Jun Mat Min Exi Min Mat Fac Gar Peak Influence 509 | . 15 20 . . 509 236 298 Initial 231 | . . 5 . . . 231 151 Average 133 | . 2 19 . . 217 228 209 Maximum Alert Level 2 | . . . . . 2 1 1 Low Security (%) 67 | 100 100 100 . 100 55 . 37 Level 1 24 | . . . . . 29 100 62 Level 2 7 | . . . . . 15 . . Level 3 . | . . . . . . . . Level 4 . | . . . . . . . . Level 5 . | . . . . . . . . High Security . | . . . . . . . . Max Security . | . . . . . . . . Squads Dispatched 5 | . . . . 1 4 . . Investigation 2 | . . . . 1 1 . . Extermination . | . . . . . . . . Reinforcement 3 | . . . . . 3 . . Assault . | . . . . . . . . Garrison . | . . . . . . . . Intercept . | . . . . . . . . Searches Triggered . | . . . . . . . . Construction Impeded . | . . . . . . . . Haulers Reinforced . | . . . . . . . . Active Scanning Responses . | . . . . . . . . Cargo Convoy Interrupts . | . . . . . . . . Stealth | -11 -10 -10 -10 -9 -8 -7 -7 --------- Run | Jun Mat Min Exi Min Mat Fac Gar Distress Signals . | . . . . . . . . Communications Jammed . | . . . . . . . . Distress Signals . | . . . . . . . . Times Spotted 73 | . 6 2 . . 46 1 18 Peak Tracking Total 9 | . 2 2 . . 7 1 9 Tactical Retreats 12 | . 2 1 . . 7 . 2 Traps | -11 -10 -10 -10 -9 -8 -7 -7 ------- Run | Jun Mat Min Exi Min Mat Fac Gar Traps Triggered 5 | . . . . . . 1 4 Indirectly . | . . . . . . . . Trap Hack Attempts . | . . . . . . . . Triggered . | . . . . . . . . Disarmed . | . . . . . . . . Reprogrammed . | . . . . . . . . Reused . | . . . . . . . . Traps Extracted . | . . . . . . . . Installed . | . . . . . . . . Triggered . | . . . . . . . . Machines | -11 -10 -10 -10 -9 -8 -7 -7 ---------- Run | Jun Mat Min Exi Min Mat Fac Gar Machines Disabled 3 | . . . . . 2 . 1 Max in Single Turn 1 | . . . . . 1 . 1 Machines Repaired . | . . . . . . . . Machines Sabotaged . | . . . . . . . . Overloaded Fab Kills . | . . . . . . . . Hacking | -11 -10 -10 -10 -9 -8 -7 -7 --------- Run | Jun Mat Min Exi Min Mat Fac Gar Machines Accessed 19 | . 6 . 4 1 6 2 . Terminals 12 | . 6 . . . 5 1 . Fabricators . | . . . . . . . . Repair Stations . | . . . . . . . . Recycling Units . | . . . . . . . . Scanalyzers . | . . . . . . . . Garrison Access 2 | . . . . . 1 1 . Total Hacks 32 | . 10 . 4 1 14 3 . Successful 12 | . 1 . 4 1 5 1 . Failed 19 | . 9 . . . 8 2 . Catastrophic 8 | . 5 . . . 2 1 . Database Lockouts 1 | . . . . . 1 . . Manual 21 | . 6 . . . 13 2 . Terminals 24 | . 10 . . . 12 2 . Fabricators . | . . . . . . . . Repair Stations . | . . . . . . . . Recycling Units . | . . . . . . . . Scanalyzers . | . . . . . . . . Garrison Access 3 | . . . . . 2 1 . Terminal Hacks 11 | . 1 . 4 1 5 . . Record 4 | . . . 4 . . . . Robot Analysis 2 | . . . . . 2 . . Open Door 1 | . . . . 1 . . . Branch Access Points 3 | . 1 . . . 2 . . Zone Layout 1 | . . . . . 1 . . Fabricator Hacks . | . . . . . . . . Repair Station Hacks . | . . . . . . . . Recycling Unit Hacks . | . . . . . . . . Scanalyzer . | . . . . . . . . Garrison Access Hacks 1 | . . . . . . 1 . Unlock Access 1 | . . . . . . 1 . Unauthorized Hacks . | . . . . . . . . Terminals . | . . . . . . . . Fabricators . | . . . . . . . . Repair Stations . | . . . . . . . . Recycling Units . | . . . . . . . . Scanalyzers . | . . . . . . . . Garrison Access . | . . . . . . . . Data Cores Recovered . | . . . . . . . . Used . | . . . . . . . . Hacking Detections 14 | . 6 . . . 6 2 . Full Trace Events 1 | . . . . . 1 . . Feedback Events . | . . . . . . . . Feedback Blocked . | . . . . . . . . Robot Schematics Acquired . | . . . . . . . . Robots Built . | . . . . . . . . Authchips . | . . . . . . . . Time . | . . . . . . . . Total Robot Build Rating . | . . . . . . . . Part Schematics Acquired . | . . . . . . . . Parts Built . | . . . . . . . . Authchips . | . . . . . . . . Time . | . . . . . . . . Total Part Build Rating . | . . . . . . . . Parts Repaired . | . . . . . . . . Time . | . . . . . . . . Parts Recycled . | . . . . . . . . Recycled Matter . | . . . . . . . . Retrieved Matter . | . . . . . . . . Retrieved Components . | . . . . . . . . Parts Scanalyzed . | . . . . . . . . Part Schematics Acquired . | . . . . . . . . Parts Damaged . | . . . . . . . . Bothacking | -11 -10 -10 -10 -9 -8 -7 -7 ------------ Run | Jun Mat Min Exi Min Mat Fac Gar Used RIF Installer . | . . . . . . . . Robots Hacked . | . . . . . . . . Non-combat . | . . . . . . . . Combat . | . . . . . . . . Robot Hacks Applied . | . . . . . . . . Relay Couplers Released . | . . . . . . . . Fabnet Peak Effective % . | . . . . . . . . Robots Rewired . | . . . . . . . . Allies Hacked . | . . . . . . . . Hacks Repelled . | . . . . . . . . Allies | -11 -10 -10 -10 -9 -8 -7 -7 -------- Run | Jun Mat Min Exi Min Mat Fac Gar Total Allies 1 | . . . . 1 . . . Largest Group 1 | . . . . 1 . . . Highest-Rated Group 31 | . . . . 31 . . . Highest-Rated Ally 31 | . . . . 31 . . . Total Orders . | . . . . . . . . Ally Attacks 3 | . . . . 3 . . . Total Damage 63 | . . . . 63 . . . Kills 2 | . . . . 2 . . . Allies Corrupted . | . . . . . . . . Allies Melted . | . . . . . . . . Intel | -11 -10 -10 -10 -9 -8 -7 -7 ------- Run | Jun Mat Min Exi Min Mat Fac Gar Robot Analysis Total 2 | . . . . . 2 . . Derelict Logs Recovered . | . . . . . . . . Drone Launches . | . . . . . . . . Drone Recoveries . | . . . . . . . . Exploration | -11 -10 -10 -10 -9 -8 -7 -7 ------------- Run | Jun Mat Min Exi Min Mat Fac Gar Turns Passed 3088 | 39 916 36 163 153 1355 181 245 Spaces Moved 2769 | 34 444 103 510 446 872 122 238 Core 126 | 31 . . . . . . 95 Treads . | . . . . . . . . Legs 899 | 3 196 . . . 516 122 62 Wheels . | . . . . . . . . Hover . | . . . . . . . . Flight 1744 | . 248 103 510 446 356 . 81 Fastest Speed 26 | 50 32 32 32 32 26 126 40 Average Speed 71 | 76 122 32 32 32 86 127 68 Slowest Speed 290 | 120 190 32 32 32 290 130 127 Overloaded Moves . | . . . . . . . . Propulsion Burnouts . | . . . . . . . . Robots Hopped 12 | . . 3 . 1 1 . 7 Cave-ins Triggered . | . . . . . . . . Exploration Rate (%) 41 | 4 44 19 93 71 62 5 36 Regions Visited 7 Branch Regions 3 Pre-discovered Areas . | . . . . . . . . Known Exits Taken 2 | . 1 . . . . 1 . Unknown Exits Taken 5 | 1 . 1 1 1 1 . . Scrap Searched 2 | . . . . 2 . . . Spaces Dug . | . . . . . . . . Terrain Destroyed 58 | . . . . . 45 . 13 Melee . | . . . . . . . . Projectile 6 | . . . . . 6 . . AOE 52 | . . . . . 39 . 13 Terrain Rammed . | . . . . . . . . Walls Destroyed . | . . . . . . . . Machines Disabled . | . . . . . . . . Actions | -11 -10 -10 -10 -9 -8 -7 -7 --------- Run | Jun Mat Min Exi Min Mat Fac Gar Total 3638 | 45 816 103 509 454 1276 138 297 Wait 541 | . 352 2 . 4 183 . . Move 2744 | 33 443 96 509 443 869 122 229 Hop 6 | . . 3 . 1 1 . 1 Pick Up 58 | 5 8 . . 2 34 4 5 Fast Attach 24 | 3 1 . . 2 17 1 . Attach 27 | 3 1 . . . 13 3 7 Detach 3 | . . 1 . . . . 2 Swap 24 | 1 5 . . . 12 5 1 Drop 53 | . 6 1 . 2 35 . 9 Fire 120 | . . . . . 111 3 6 Melee 4 | . . . . . . . 4 Ram 9 | . . . . . . . 9 Kick 1 | . . . . . 1 . . Crush . | . . . . . . . . Escape Stasis 24 | . . . . . . . 24 Rewire . | . . . . . . . . Trap . | . . . . . . . . Miscellaneous . | . . . . . . . . Route ------- -11/Junkyard -10/Materials (discovered 3 exits: [*Mat] / *Min x2) -10/Mines (discovered 2 exits: [*Mat] / *Exi) -10/Exiles (discovered 2 exits: *Min x2) -9/Mines -8/Materials -7/Factory -7/Garrison (discovered 1 exit: [*Fac]) History --------- Turn | Location | Event 2 | -11/Junkyard | Met Revision 17 8 | -11/Junkyard | Discovered new exit (range 16) 40 | -11/Junkyard | Entered Materials 206 | -10/Materials | Identified exit to Mines 312 | -10/Materials | Build established: Mutant 919 | -10/Materials | Discovered new exit (range 7) 956 | -10/Materials | Entered Mines 986 | -10/Mines | Discovered new exit (range 6) 991 | -10/Mines | Deemed a non-threat by the Exiles lab entrance 991 | -10/Mines | Discovered new exit (range 5) 992 | -10/Mines | Entered Exiles 992 | -10/Exiles | Found Exiles lab abandoned 998 | -10/Exiles | Discovered new exit (range 15) 1152 | -10/Exiles | Discovered new exit (range 14) 1155 | -10/Exiles | Entered Mines 1158 | -9/Mines | Received a Mining Laser from a helpful Derelict 1162 | -9/Mines | Met a Derelict bent on vengeance 1200 | -9/Mines | Assembled infested the area 1205 | -9/Mines | Assisted by a Guerilla fighting off Assembled 1218 | -9/Mines | Met a Derelict shopkeep closing up shop 1242 | -9/Mines | Build established: Sprinter 1307 | -9/Mines | Discovered new exit (range 4) 1308 | -9/Mines | Entered Materials 1308 | -8/Materials | Evolved 4 slots: Propulsion x2, Utility x2 1503 | -8/Materials | Central database locked down 1610 | -8/Materials | Lost 3 parts (1p1n1u) 1898 | -8/Materials | Build established: Mutant 2426 | -8/Materials | Core integrity fell below 50% 2624 | -8/Materials | Discovered new exit (range 9) 2663 | -8/Materials | Entered Factory 2663 | -7/Factory | Evolved 2 slots: Power x1, Propulsion x1 2837 | -7/Factory | Lost 3 parts (1p1n1u) 2844 | -7/Factory | Identified exit to Garrison 2844 | -7/Factory | Entered Garrison 2921 | -7/Garrison | Triggered checkpoint 2933 | -7/Garrison | Triggered checkpoint 2960 | -7/Garrison | Triggered checkpoint 2974 | -7/Garrison | Lost 6 parts (5n1w) 3038 | -7/Garrison | Discovered new exit (range 11) 3043 | -7/Garrison | Attempted to access garrison exit controls, blocked by remote lockdown 3047 | -7/Garrison | Core integrity fell below 50% 3054 | -7/Garrison | Triggered checkpoint 3063 | -7/Garrison | Lost 4 parts (1p1n1u1w) 3082 | -7/Garrison | Core integrity fell below 20% 3089 | -7/Garrison | Destroyed by P-60 Hacker with Shock Rifle Last Messages --------------- 03015_ Acquired Lgt. Nuclear Core. 03018_ Acquired 47 matter. 03021_ Xenon Bombardment Thruster destroyed. 03032_ Lgt. Nuclear Core destroyed. 03038_ EXIT=FOUND 03043_ Attempting to access garrison exit controls... 03043_ Remote lockdown engaged. 03054_ Beams of light sweep through the air. An alarm sounds. 03059_ Slammed into G-47 Trooper. 03066_ Acquired Imp. Shield Generator. 03067_ Dropped Gauss Rifle. 03068_ Dropped Hvy. Laser. 03068_ Dropped Hvy. Mace. 03069_ Acquired Imp. Shield Generator. 03076_ Slammed into P-60 Hacker. 03077_ Slammed into G-47 Trooper. 03086_ Critical hit (Burn: +37). 03088_ Slammed into S-27 Virus. 03089_ Slammed into P-60 Hacker. 03089_ Destabilizing: Core damaged (-28). Map ----- +----------------------------------------------------+ | ????# "#??????????????????# #????????????????? | | ????# #"#??????????????????# < #????????????????? | | ????# ###??????????????????# #????????????????? | | ????# #????????????????????# ###????????????????? | | ????# #????????????????????# #??????????????????? | | ????# #????????????????????# #??????????????????? | | ??### #????????????????##### #??????????????????? | | ??# [ #????????????????# + #??????????????????? | | ??# % #????????????????# ### #??????????????????? | | ??# #????????????????????# #??????????????????? | | ??### #????????????????????# #??????????????????? | | ????# #?????????############ ##??###????????????? | | ##### #######???# #?? #????????????? | | # #???# #??# #????????????? | | ##+##### #???# ########### #??# #????????????? | | ?? ????# #???# #?????????# #?##+##???????????? | | ?? ????# ##???# #?????????# #?# #???????????? | | ?# #???#####????# #?????????# ### ##########??? | | ?# #??###???????# #?????????# #??? | | ? ?? #???????# #?????????###### ####### #??? | | ?# #??# #???????# #????????? #??# #??????""""#?? | | ?# #??# ######### #?????????# #??# #???????####?? | | ?# #??# # # ## #?????????# #??# #????????????? | | ?#=#### # # ##????????# #??# #????????????? | | ##%[ [% ########## #### #????????????? | | ![ ! # g@ Yg + ######???????? | | [=!* % ####p##########/#!!!!#???????? | | ##### # #??#s#????????# ^[ #???????? | | ????## ## ## #?## #????????###[ #???????? | | ???? "?# #??????????######???????? | | ???# "?####???????????????????????? | | ???# [ ^ "????????????????????????????? | | ???# =%* "????????????????????????????? | | ???### ## ## #????????????????????????????? | | ?????# ## #? #????????????????????????????? | | ????? ????????????????????????????? | | ????? ???????????????????????????? | | ????## ???????????????????????????? | | ?????######""""####??????????????????????????????? | | ?????????????????????????????????????????????????? | | ?????????????????????????????????????????????????? | | ?????????????????????????????????????????????????? | | ?????????????????????????????????????????????????? | | ?????????????????????????????????????????????????? | | ?????????????????????????????????????????????????? | | ?????????????????????????????????????????????????? | | ?????????????????????????????????????????????????? | | ?????????????????????????????????????????????????? | | ?????????????????????????????????????????????????? | | ?????????????????????????????????????????????????? | +----------------------------------------------------+ Best States ------------- Heat Dissipation 48 Energy Generation 27 Energy Capacity 480 Matter Stores 300 Matter Capacity 300 Sight Range 16 Robot Scan Range 14 Terrain Scan Density 10 ECM Strength 1 Additional Mass Support 9 Armor Coverage 600 Resistance: KI 30 Resistance: EM 15 Weapon Shielding 33 Evasion (%) 64 Item Schematics ----------------- None Robot Schematics ------------------ None Fabricated ------------ Nothing Alien Tech Used ----------------- None Achievements -------------- Cya! Challenges ------------ None Game ------ Seed TeslaSchematicPenetrator Manual? 0 Play Time 00:37:54 Cumulative 37.8 hours Start 2023.10.09 @ 16:57:49 End 2023.10.09 @ 17:32:35 Sessions 1 Manual Loads 0 Difficulty Rogue Special Mode None Game No. 72 Rogue 69 Adventurer 3 Explorer 0 Win Type - Total 0 Types 0/0/0/0/0/0/0/0/0 Lore% 24 Gallery% 38 Achievement% 27 Wizard Run 0 Options --------- ASCII 0 Keyboard 0 Movement Mouse Keybinds 0 Fullscreen 2 Font 18/SmallcapsGlow Map View 76x50 Tactical HUD 1 Map Filters NONE Filters NONE Steam 1 RUN: b86194fb-b2c3-4859-8319-a228499ef751